Cogmind - Beta 11.1 @@@ ROGUE MODE // 2022.08.23 @ 12:03:34 Player: zhawty Result: Destroyed by Y-54 Guardian with Flak Gun Performance ------------- Evolutions (3) 1500 Regions Visited (7) 1400 Robots Destroyed (48) 240 Value Destroyed (1362) 1362 Prototype IDs (4) 80 Alien Tech Used (0) 0 Bonus (0) 0 TOTAL SCORE: 4582 Bonus ------- None Cogmind --------- Core Integrity 0/700 Matter 89/300 Energy 99/100 System Corruption 7% Temperature Cool (6) Movement Core (50) Location -7/Storage Parts ------- > --- POWER (3) -------- (None) > --- PROPULSION (4) --- (None) > --- UTILITY (3) ------ (None) > --- WEAPON (3) ------- (None) > --- INVENTORY (5) ---- (None) Peak State ------------ > --- POWER ------------ Heavy Deuterium Engine Enhanced Nuclear Core Enhanced Nuclear Core > --- PROPULSION ------- Titanium Leg Improved Carbon-fiber Leg Improved Carbon-fiber Leg > --- UTILITY ---------- Compact Battery Improved Medium Armor Plating Improved Medium Armor Plating > --- WEAPON ----------- Advanced Assault Cannon Improved Grenade Launcher Scythe > --- INVENTORY -------- Heavy Deuterium Engine Improved Grenade Launcher Improved Grenade Launcher [Rating: 48] Favorites ----------- Power Light Ion Engine Engine Light Ion Engine Power Core Enhanced Nuclear Core Propulsion Titanium Leg Treads Light Treads Leg Titanium Leg Wheel Wheel Utility Core Shielding Device Advanced Weight Redist. System Storage Large Storage Unit Protection Core Shielding Weapon Assault Rifle Energy Gun Improved Medium Laser Energy Cannon Heavy Particle Cannon Ballistic Gun Assault Rifle Ballistic Cannon Advanced Assault Cannon Launcher Improved Grenade Launcher Slashing Weapon Scythe Build | -11 -10 -10 -9 -9 -8 -7 -7 ------- Run | Scr Mat Min Mat Min Mat Fac Sto Slots Evolved 6 | . . . 2 . 2 2 . Power 2 | . . . 1 . . 1 . Propulsion 2 | . . . . . 1 1 . Utility 1 | . . . 1 . . . . Weapon 1 | . . . . . 1 . . Parts Attached 58 | 6 1 . 8 2 13 5 23 Power 10 | 1 . . 1 . 2 . 6 Engine 7 | 1 . . 1 . 2 . 3 Core 3 | . . . . . . . 3 Reactor . | . . . . . . . . Propulsion 12 | 2 . . 1 . 5 . 4 Treads 2 | 1 . . 1 . . . . Leg 9 | . . . . . 5 . 4 Wheel 1 | 1 . . . . . . . Hover . | . . . . . . . . Flight . | . . . . . . . . Utility 14 | 1 1 . 2 . 1 3 6 Device 3 | . . . . . . 2 1 Storage 4 | 1 . . 1 . 1 1 . Processor . | . . . . . . . . Hackware . | . . . . . . . . Protection 7 | . 1 . 1 . . . 5 Artifact . | . . . . . . . . Weapon 22 | 2 . . 4 2 5 2 7 Energy Gun 2 | . . . 1 . . 1 . Energy Cannon 3 | . . . . 1 2 . . Ballistic Gun 8 | 2 . . 2 1 2 . 1 Ballistic Cannon 1 | . . . . . . . 1 Launcher 7 | . . . 1 . 1 . 5 Special Weapon . | . . . . . . . . Impact Weapon . | . . . . . . . . Slashing Weapon 1 | . . . . . . 1 . Piercing Weapon . | . . . . . . . . Special Melee Weapon . | . . . . . . . . Unidentified Prototypes 4 | . . . 1 . . 1 2 Parts Lost 28 | . . . 1 . 13 . 14 Power 7 | . . . 1 . 3 . 3 Propulsion 6 | . . . . . 3 . 3 Utility 6 | . . . . . 3 . 3 Weapon 9 | . . . . . 4 . 5 Highest Loss Streak 13 | . . . 1 . 11 . 13 To Critical Strikes . | . . . . . . . . Average Slot Usage (%) 71 | . 76 85 79 88 75 26 56 Engine 8 | . 14 14 6 11 9 . 4 Core 1 | . . . . . . . 8 Treads 7 | . 14 14 17 22 2 . . Leg 9 | . . . . . 19 . 11 Storage 11 | . 14 14 11 11 16 5 5 Protection 11 | . 5 14 22 22 8 . 8 Energy Gun 1 | . . . . . . 6 3 Energy Cannon 4 | . . . . 10 9 . . Ballistic Gun 12 | . 28 28 20 11 9 . 2 Slashing Weapon 1 | . . . . . . 1 5 Naked Turns 50 | . . . . . 23 4 23 Heaviest Build 50 | 12 13 13 31 32 41 9 50 Greatest Support 53 | 20 20 20 40 40 52 12 53 Greatest Overweight (x) 11 | . . . . . 10 2 11 Average Overweight (x) . | . . . . . . . 1 Largest Inventory Capacity 15 | 8 8 8 15 15 15 5 5 Average Capacity 10 | 7 8 8 10 15 14 5 5 Most Carried 13 | 5 6 7 8 8 13 5 5 Average Carried 6 | 4 5 6 7 7 8 5 3 Final Capacity 15 | 8 8 8 15 15 5 5 5 Final Carried 8 | 5 6 7 8 8 5 5 . Class Distribution -------------------- 86% | Mutant 8% | Tank 5% | Generator-Mutant Dominant Class ---------------- Mutant | -10/Materials Mutant | -10/Mines Mutant | -9/Materials Mutant | -9/Mines Mutant | -8/Materials Mutant | -7/Factory Mutant | -7/Storage Resources | -11 -10 -10 -9 -9 -8 -7 -7 ----------- Run | Scr Mat Min Mat Min Mat Fac Sto Matter Collected 1223 | 206 . 28 249 . 441 . 299 Remotely . | . . . . . . . . Salvage Created 1371 | . . 47 355 . 479 . 490 Parts 106 | . . 5 36 . 37 . 28 Haulers Intercepted . | . . . . . . . . Recyclers Shooed 1 | . . . . . . . 1 Parts Field Recycled . | . . . . . . . . Retrieved Matter . | . . . . . . . . Parts Self-Destructed . | . . . . . . . . Prevented . | . . . . . . . . Kills | -11 -10 -10 -9 -9 -8 -7 -7 ------- Run | Scr Mat Min Mat Min Mat Fac Sto Combat Hostiles Destroyed 39 | . . 3 9 . 15 . 12 Melee 2 | . . . . . . . 2 Guns 23 | . . 3 8 . 12 . . Cannons 6 | . . . . . 3 . 3 AOE 8 | . . . 1 . . . 7 Classes Destroyed 8 | . . 1 5 . . . 2 Builder 3 | . . . 1 . 1 . 1 Recycler 3 | . . . . . . . 3 Operator 1 | . . . 1 . . . . Watcher 2 | . . . 1 . 1 . . Swarmer 18 | . . 3 4 . 7 . 4 Grunt 13 | . . . 3 . 6 . 4 Sentry 7 | . . . 2 . 2 . 3 Programmer 1 | . . . . . . . 1 Best Kill Streak 12 | . . 3 5 . 5 . 12 Combat Bots Only 8 | . . 3 5 . 5 . 8 Max Kills in Single Turn 2 | . . 2 2 . 1 . 2 Gunslinging 1 | . . 1 1 . . . . Exploded 1 | . . . 1 . . . 1 Melee 1 | . . . . . . . 1 Uniques/NPCs Destroyed . | . . . . . . . . Combat | -11 -10 -10 -9 -9 -8 -7 -7 -------- Run | Scr Mat Min Mat Min Mat Fac Sto Damage Taken 4632 | . . 9 524 . 1985 20 2094 Core 1147 | . . . 38 . 409 2 698 Absorbed by Shields 42 | . . . . . . . 42 Redirected to Shielding 42 | . . . 8 . 34 . . Core Remaining (%) 78 | 100 . 100 . 90 25 . . Volleys Fired 109 | . . 2 31 . 52 . 24 Largest 3 | . . 2 2 . 3 . 2 Hottest 175 | . . 40 53 . 175 . 84 Shots Fired 197 | . . 4 56 . 102 . 35 Gun 123 | . . 4 54 . 61 . 4 Cannon 53 | . . . . . 39 . 14 Launcher 21 | . . . 2 . 2 . 17 Special . | . . . . . . . . Kinetic 137 | . . 4 54 . 61 . 18 Thermal 39 | . . . . . 39 . . Explosive 17 | . . . . . . . 17 Electromagnetic 4 | . . . 2 . 2 . . Robot Hit Streak 8 | . . 3 7 . 8 . 7 Robot Miss Streak 7 | . . 1 7 . 4 . 2 Penetration Max . | . . . . . . . . Secondary Targets 3 | . . 1 2 . . . . Max Gunslinging Chain 1 | . . 1 1 . . . . Shots Hit Robots 119 | . . 3 27 . 61 1 27 Core Hits 83 | . . 3 15 . 35 . 30 Critical Kills 1 | . . . 1 . . . . Critical Parts Destroyed 1 | . . . 1 . . . . Critical Strikes 5 | . . . 2 . . . 3 Destroy 2 | . . . 2 . . . . Blast 1 | . . . . . . . 1 Sever 2 | . . . . . . . 2 Melee Attacks 5 | . . . . . . 1 4 Impact . | . . . . . . . . Slashing 5 | . . . . . . 1 4 Piercing . | . . . . . . . . Sneak Attacks 1 | . . . . . . 1 . Combat Hostiles . | . . . . . . . . Follow-up Attacks . | . . . . . . . . Damage Inflicted 3397 | . . 49 455 . 1324 65 1504 Guns 1098 | . . 49 350 . 680 . 19 Cannons 705 | . . . . . 450 . 255 Explosions 1363 | . . . 86 . 194 . 1083 Melee 186 | . . . . . . 60 126 Ramming 45 | . . . 19 . . 5 21 Kinetic 1353 | . . 49 350 . 680 . 274 Thermal 492 | . . . . . 492 . . Explosive 1083 | . . . . . . . 1083 Electromagnetic 238 | . . . 86 . 152 . . Impact . | . . . . . . . . Slashing 186 | . . . . . . 60 126 Piercing . | . . . . . . . . Highest Corruption 7 | . . . 2 2 . 1 7 Average Corruption 2 | . . . 2 2 . 1 2 Corruption Purged . | . . . . . . . . Corruption Blocked . | . . . . . . . . Effects 8 | . . . 1 1 . 1 5 Message Errors 3 | . . . . . . . 3 Matter Fused 3 | . . . . 1 . 1 1 Data Loss (minor) 1 | . . . 1 . . . . Misfires 1 | . . . . . . . 1 Overload Shots . | . . . . . . . . Overflow Damage 65 | . . . . . 5 20 40 Projectiles 5 | . . . . . 5 . . Explosions 40 | . . . . . . . 40 Melee 20 | . . . . . . 20 . Knockbacks 2 | . . . . . . . 2 Impact . | . . . . . . . . Kinetic 1 | . . . . . . . 1 Secondary 1 | . . . . . . . 1 Self-Inflicted Damage 368 | . . . . . 31 2 335 Shots 12 | . . . . . 2 . 10 Rammed 13 | . . . 4 . . 1 8 Targets Rammed 14 | . . . 5 . . 1 8 Kicked . | . . . . . . . . Crushed 1 | . . . 1 . . . . Highest Temperature 654 | . . . 3 . 654 . 528 Average Temperature 250 | . . . 3 . 235 . 284 Received Heat Transfer 1407 | . . . 72 . 846 9 480 Effects 38 | . . . . . 22 . 16 Shutdowns 10 | . . . . . 2 . 8 Energy Bleed 6 | . . . . . 2 . 4 Interference 2 | . . . . . 2 . . Short Circuit 5 | . . . . . 4 . 1 Damage (minor) 2 | . . . . . 2 . . Damage (major) 12 | . . . . . 9 . 3 Damage (core) 1 | . . . . . 1 . . Siege Activations . | . . . . . . . . Robots Corrupted . | . . . . . . . . Combat Hostiles . | . . . . . . . . Parts Fried . | . . . . . . . . Impact Corruptions . | . . . . . . . . Robots Melted . | . . . . . . . . Combat Hostiles . | . . . . . . . . Parts Melted . | . . . . . . . . Heat Transferred 816 | . . . . . 816 . . Parts Sabotaged . | . . . . . . . . Parts Stolen . | . . . . . . . . Parts Stripped . | . . . . . . . . Power Chain Reactions 1 | . . . . . 1 . . Missiles Intercepted . | . . . . . . . . Alert | -11 -10 -10 -9 -9 -8 -7 -7 ------- Run | Scr Mat Min Mat Min Mat Fac Sto Peak Influence 433 | . 15 79 312 127 309 150 433 Initial 135 | . . 5 30 127 49 135 68 Average 151 | . 2 23 178 127 166 140 222 Maximum Alert Level 2 | . . . 1 . 1 . 2 Low Security (%) 67 | 100 100 100 54 100 54 100 57 Level 1 31 | . . . 45 . 45 . 35 Level 2 1 | . . . . . . . 7 Level 3 . | . . . . . . . . Level 4 . | . . . . . . . . Level 5 . | . . . . . . . . High Security . | . . . . . . . . Max Security . | . . . . . . . . Squads Dispatched 10 | . . . 2 . 4 . 4 Investigation 1 | . . . . . 1 . . Extermination 1 | . . . . . . . 1 Reinforcement 5 | . . . 2 . 2 . 1 Assault . | . . . . . . . . Garrison 3 | . . . . . 1 . 2 Intercept . | . . . . . . . . Searches Triggered . | . . . . . . . . Construction Impeded 1 | . . . . . . . 1 Haulers Reinforced . | . . . . . . . . Active Scanning Responses . | . . . . . . . . Cargo Convoy Interrupts . | . . . . . . . . Stealth | -11 -10 -10 -9 -9 -8 -7 -7 --------- Run | Scr Mat Min Mat Min Mat Fac Sto Distress Signals 6 | . . . 3 . 2 . 1 Communications Jammed . | . . . . . . . . Distress Signals . | . . . . . . . . Times Spotted 74 | . 1 3 16 . 32 3 19 Peak Tracking Total 10 | . 1 3 6 . 8 3 10 Tactical Retreats 3 | . . . 2 . 1 . . Traps | -11 -10 -10 -9 -9 -8 -7 -7 ------- Run | Scr Mat Min Mat Min Mat Fac Sto Traps Triggered 6 | . . . 1 . 1 . 4 Indirectly . | . . . . . . . . Trap Hack Attempts . | . . . . . . . . Triggered . | . . . . . . . . Disarmed . | . . . . . . . . Reprogrammed . | . . . . . . . . Reused . | . . . . . . . . Traps Extracted . | . . . . . . . . Installed . | . . . . . . . . Triggered . | . . . . . . . . Machines | -11 -10 -10 -9 -9 -8 -7 -7 ---------- Run | Scr Mat Min Mat Min Mat Fac Sto Machines Disabled 5 | . . . . . 2 . 3 Max in Single Turn 2 | . . . . . 1 . 2 Machines Sabotaged . | . . . . . . . . Garrisons Compromised . | . . . . . . . . Overloaded Fab Kills . | . . . . . . . . Hacking | -11 -10 -10 -9 -9 -8 -7 -7 --------- Run | Scr Mat Min Mat Min Mat Fac Sto Machines Accessed 3 | . . . . . 1 . 2 Terminals 3 | . . . . . 1 . 2 Fabricators . | . . . . . . . . Repair Stations . | . . . . . . . . Recycling Units . | . . . . . . . . Scanalyzers . | . . . . . . . . Garrison Access . | . . . . . . . . Total Hacks 5 | . . . . . 1 . 4 Successful 3 | . . . . . 1 . 2 Failed 2 | . . . . . . . 2 Catastrophic . | . . . . . . . . Database Lockouts . | . . . . . . . . Manual 2 | . . 2 . . . . . Terminals 5 | . . . . . 1 . 4 Fabricators . | . . . . . . . . Repair Stations . | . . . . . . . . Recycling Units . | . . . . . . . . Scanalyzers . | . . . . . . . . Garrison Access . | . . . . . . . . Terminal Hacks 3 | . . . . . 1 . 2 Open Door 2 | . . . . . . . 2 Alert Level 1 | . . . . . 1 . . Fabricator Hacks . | . . . . . . . . Repair Station Hacks . | . . . . . . . . Recycling Unit Hacks . | . . . . . . . . Scanalyzer . | . . . . . . . . Garrison Access Hacks . | . . . . . . . . Unauthorized Hacks . | . . . . . . . . Terminals . | . . . . . . . . Fabricators . | . . . . . . . . Repair Stations . | . . . . . . . . Recycling Units . | . . . . . . . . Scanalyzers . | . . . . . . . . Garrison Access . | . . . . . . . . Data Cores Recovered . | . . . . . . . . Used . | . . . . . . . . Hacking Detections 1 | . . . . . . . 1 Full Trace Events . | . . . . . . . . Feedback Events . | . . . . . . . . Feedback Blocked . | . . . . . . . . Robot Schematics Acquired . | . . . . . . . . Robots Built . | . . . . . . . . Authchips . | . . . . . . . . Time . | . . . . . . . . Total Robot Build Rating . | . . . . . . . . Part Schematics Acquired . | . . . . . . . . Parts Built . | . . . . . . . . Authchips . | . . . . . . . . Time . | . . . . . . . . Total Part Build Rating . | . . . . . . . . Parts Repaired . | . . . . . . . . Time . | . . . . . . . . Parts Recycled . | . . . . . . . . Recycled Matter . | . . . . . . . . Retrieved Matter . | . . . . . . . . Retrieved Components . | . . . . . . . . Parts Scanalyzed . | . . . . . . . . Part Schematics Acquired . | . . . . . . . . Parts Damaged . | . . . . . . . . Bothacking | -11 -10 -10 -9 -9 -8 -7 -7 ------------ Run | Scr Mat Min Mat Min Mat Fac Sto Used RIF Installer . | . . . . . . . . Robots Hacked . | . . . . . . . . Non-combat . | . . . . . . . . Combat . | . . . . . . . . Robot Hacks Applied . | . . . . . . . . Relay Couplers Released . | . . . . . . . . Fabnet Peak Effective % . | . . . . . . . . Robots Rewired . | . . . . . . . . Allies Hacked . | . . . . . . . . Hacks Repelled . | . . . . . . . . Allies | -11 -10 -10 -9 -9 -8 -7 -7 -------- Run | Scr Mat Min Mat Min Mat Fac Sto Total Allies 1 | . . 1 . . . . . Largest Group 1 | . . 1 1 . . . . Highest-Rated Group 31 | . . 31 31 . . . . Highest-Rated Ally 31 | . . 31 31 . . . . Total Orders . | . . . . . . . . Ally Attacks 4 | . . 2 2 . . . . Total Damage 22 | . . . 22 . . . . Kills . | . . . . . . . . Allies Corrupted . | . . . . . . . . Allies Melted . | . . . . . . . . Intel | -11 -10 -10 -9 -9 -8 -7 -7 ------- Run | Scr Mat Min Mat Min Mat Fac Sto Robot Analysis Total . | . . . . . . . . Derelict Logs Recovered . | . . . . . . . . Drone Launches . | . . . . . . . . Drone Recoveries . | . . . . . . . . Exploration | -11 -10 -10 -9 -9 -8 -7 -7 ------------- Run | Scr Mat Min Mat Min Mat Fac Sto Turns Passed 2023 | 91 114 99 384 120 722 114 379 Spaces Moved 1014 | 55 70 58 167 73 315 105 171 Core 233 | 8 . . . . 50 105 70 Treads 478 | 42 70 58 167 73 68 . . Legs 298 | . . . . . 197 . 101 Wheels 5 | 5 . . . . . . . Hover . | . . . . . . . . Flight . | . . . . . . . . Fastest Speed 50 | 50 160 160 160 160 50 50 50 Average Speed 151 | 136 160 160 160 160 168 83 147 Slowest Speed 600 | 160 160 160 160 160 550 150 600 Overloaded Moves . | . . . . . . . . Propulsion Burnouts . | . . . . . . . . Robots Hopped . | . . . . . . . . Cave-ins Triggered . | . . . . . . . . Exploration Rate (%) 18 | 4 21 15 21 19 30 4 32 Regions Visited 7 Branch Regions 3 Pre-discovered Areas 1 | . . . . 1 . . . Known Exits Taken . | . . . . . . . . Unknown Exits Taken 7 | 1 1 1 1 1 1 1 . Scrap Searched . | . . . . . . . . Spaces Dug . | . . . . . . . . Terrain Destroyed 138 | . . . . . 19 . 119 Melee . | . . . . . . . . Projectile 21 | . . . . . 18 . 3 AOE 117 | . . . . . 1 . 116 Terrain Rammed . | . . . . . . . . Walls Destroyed . | . . . . . . . . Machines Disabled . | . . . . . . . . Actions | -11 -10 -10 -9 -9 -8 -7 -7 --------- Run | Scr Mat Min Mat Min Mat Fac Sto Total 1319 | 70 72 60 231 76 425 128 257 Wait 62 | 1 . . . . 32 17 12 Move 1007 | 54 69 57 166 72 314 104 171 Hop . | . . . . . . . . Pick Up 44 | 8 2 1 12 1 9 . 11 Fast Attach 14 | 3 . . . . . 5 6 Attach 37 | 3 1 . 6 1 10 . 16 Detach 1 | . . . . . . . 1 Swap 7 | . . . 2 1 3 . 1 Drop 19 | 1 . . 9 1 5 . 3 Fire 109 | . . 2 31 . 52 . 24 Melee 5 | . . . . . . 1 4 Ram 9 | . . . . . . 1 8 Kick . | . . . . . . . . Crush 5 | . . . 5 . . . . Escape Stasis . | . . . . . . . . Rewire . | . . . . . . . . Trap . | . . . . . . . . Miscellaneous . | . . . . . . . . Route ------- -11/Scrapyard -10/Materials -10/Mines -9/Materials -9/Mines -8/Materials -7/Factory -7/Storage History --------- Turn | Location | Event 16 | -11/Scrapyard | Discovered new exit (range 15) 92 | -11/Scrapyard | Entered Materials 182 | -10/Materials | Discovered new exit (range 16) 206 | -10/Materials | Entered Mines 209 | -10/Mines | Received a Mining Laser from a helpful Derelict 289 | -10/Mines | Discovered new exit (range 3) 300 | -10/Mines | Build established: Mutant 305 | -10/Mines | Entered Materials 305 | -9/Materials | Accompanied by 1 ally 305 | -9/Materials | Evolved 2 slots: Power x1, Utility x1 679 | -9/Materials | Discovered new exit (range 7) 689 | -9/Materials | Entered Mines 748 | -9/Mines | Learned location of Storage (-7) 748 | -9/Mines | Discovered new exit (range 5) 785 | -9/Mines | A weapon hastily lodged in a ceiling crevice suddenly fell to the ground 809 | -9/Mines | Entered Materials 809 | -8/Materials | Evolved 2 slots: Propulsion x1, Weapon x1 1437 | -8/Materials | Garrison activated, responded to threat 1501 | -8/Materials | Core integrity fell below 50% 1529 | -8/Materials | Discovered new exit (range 5) 1531 | -8/Materials | Entered Factory 1531 | -7/Factory | Evolved 2 slots: Power x1, Propulsion x1 1539 | -7/Factory | Lost 11 parts (2p3n3u3w) 1641 | -7/Factory | Discovered new exit (range 3) 1645 | -7/Factory | Entered Storage 1842 | -7/Storage | Garrison activated, responded to threat 1916 | -7/Storage | Destroyed 8 combat bots 1955 | -7/Storage | Core integrity fell below 50% 1987 | -7/Storage | Lost 13 parts (3p3n3u4w) 2011 | -7/Storage | Released all parts (2) 2019 | -7/Storage | Core integrity fell below 20% 2024 | -7/Storage | Destroyed by Y-54 Guardian with Flak Gun Last Messages --------------- 02002_ U-05 Engineer lays Concrete. 02005_ The unstable cave ceiling collapses. 02005_ K-01 Serf collects debris. 02006_ U-05 Engineer lays Concrete. 02009_ Imp. Grenade Launcher destroyed. 02009_ Destroyed Imp. Grenade Launcher. 02009_ K-01 Serf collects debris. 02010_ U-05 Engineer lays Concrete. 02010_ K-01 Serf collects debris. 02011_ U-05 Engineer lays Concrete. 02011_ Released Hvy. Deuterium Engine. 02011_ Released Imp. Shield Generator. 02011_ U-05 Engineer lays Concrete. 02013_ K-01 Serf collects debris. 02013_ U-05 Engineer lays Concrete. 02014_ Acquired 20 matter. 02017_ The unstable cave ceiling collapses. 02017_ Acquired 5 matter. 02018_ K-01 Serf destroyed. 02018_ Acquired 28 matter. Map ----- +----------------------------------------------------+ | ??????????????????????????????????????? | | ??????????????????????????????????????? | | ??????????????????????????????????????? | | ??????????????????????????????????????? | | ??????????????????????????????????????? | | ??????????????????????????????????????? | | ??????????????????????????????????????? | | ??????????????????????????????????????? | | ??????????????????????????????????????? | | ??????????????????????????????????????? | | ??????????????????????????????????????? | | ????????????????????? ????????????????? | | ????????????????????? ??????????????? | | ????????????????????? ??????????????? | | ?????????????????????# ?????????????? | | ?????????????????????# ?????????????? | | ?????????????????????#w ?????????????? | | ?????????????????????# ?????????????? | | ?????????????????????# ?????????????? | | ?????????????????????+ +????????????? | | ?????????????????????# #????????????? | | ?????????????????????# #????????????? | | ?????????????????????# #????????????? | | ????????????????????## ##???????????? | | ????????????????????# #???????????? | | ????????????????????# @#???????????? | | ????????????????????# Y #???????????? | | ?????????????#??????# #???????????? | | ?????????????# ""???# #???????????? | | ?????????????#""R"??## ##???????????? | | ?????????#####"" "##?# #????????????? | | ????????## ?# #????????????? | | ????????# # #????????????? | | ?????????# #g #????????????? | | ?????????# %/r ##???????????? | | ???????????""" !# ##???????????? | | ???????????""" # = ###??????????? | | ???????????""" # =%# #??????????? | | ???????????### # ### =# ##?????????? | | ????????????# # # # #?????????? | | ????????????# ####### # #?????????? | | #########???# # [ # #?????????? | | #???### % ## ##????????? | | ####### ! !## #????????? | | + * # ##/### ##???????? | | #### [ #???????? | | ### ] ##???????? | | !] "#???????? | | # ""#???????? | | ! ! # G#???????? | +----------------------------------------------------+ Best States ------------- Heat Dissipation 34 Energy Generation 42 Energy Capacity 910 Matter Stores 450 Matter Capacity 450 Sight Range 16 Terrain Scan Density 10 Additional Mass Support 9 Armor Coverage 450 Core Shielding 20 Evasion (%) 55 Recoil Reduction 2 Item Schematics ----------------- None Robot Schematics ------------------ None Fabricated ------------ Nothing Alien Tech Used ----------------- None Achievements -------------- None Challenges ------------ None Game ------ Seed DeuteriumRefinerySaw Manual? 0 Play Time 00:24:48 Cumulative 9.5 hours Start 2022.08.23 @ 11:40:10 End 2022.08.23 @ 12:03:34 Sessions 1 Manual Loads 0 Difficulty Rogue Special Mode None Game No. 27 Rogue 27 Adventurer 0 Explorer 0 Win Type - Total 0 Types 0/0/0/0/0/0/0/0/0 Lore% 15 Gallery% 20 Achievement% 18 Wizard Run 0 Options --------- ASCII 0 Keyboard 0 Movement Numpad Keybinds 0 Fullscreen 1 Font 12/Smallcaps Map View 83x54 Tactical HUD 1 Map Filters NONE Filters NONE Steam 1 RUN: a674f080-1ec3-4740-8e1a-c4c667d843b8